Cogmind - Beta 13 @@@ ROGUE MODE // 2024.03.31 @ 13:26:58 Player: Devolved Result: Destroyed by D-53 Grenadier with Mini Grenade Launcher Performance ------------- Evolutions (1) 500 Regions Visited (3) 600 Robots Destroyed (27) 135 Value Destroyed (642) 642 Prototype IDs (2) 40 Alien Tech Used (0) 0 Bonus (2) 2 TOTAL SCORE: 1919 Bonus ------- High Alert Combat Kills 2 Cogmind --------- Core Integrity 0/400 Matter 244/300 Energy 100/240 System Corruption 5% Temperature Cool (0) Movement Walking (130) Location -9/Mines Parts ------- > --- POWER (2) -------- Nuclear Core > --- PROPULSION (2) --- Titanium Leg Titanium Leg > --- UTILITY (3) ------ Large Storage Unit Advanced Visual Processing Unit > --- WEAPON (2) ------- (None) > --- INVENTORY (15) --- Heat Sink Small Battery (100) High-capacity Matter Pod (200) Sensor Array Signal Interpreter Datajack Peak State ------------ > --- POWER ------------ Nuclear Core Nuclear Core > --- PROPULSION ------- Titanium Leg Titanium Leg > --- UTILITY ---------- Large Storage Unit Advanced Visual Processing Unit Core Shielding > --- WEAPON ----------- Particle Cannon Heavy Assault Rifle > --- INVENTORY -------- Nuclear Core Nuclear Core Titanium Leg Titanium Leg Heat Sink Small Battery High-capacity Matter Pod Sensor Array Signal Interpreter ECM Suite Assault Rifle Grenade Launcher Datajack [Rating: 23] Favorites ----------- Power Ion Engine Engine Ion Engine Power Core Nuclear Core Propulsion Aluminum Leg Leg Aluminum Leg Utility Large Storage Unit Device ECM Suite Storage Large Storage Unit Processor Advanced Visual Processing Unit Protection Core Shielding Weapon Assault Rifle Energy Gun Particle Gun Energy Cannon Particle Cannon Ballistic Gun Assault Rifle Launcher Grenade Launcher Build | -11 -10 -9 -9 ------- Run | Yrd Mat Mat Min Slots Evolved 2 | . . 2 . Power 1 | . . 1 . Propulsion . | . . . . Utility 1 | . . 1 . Weapon . | . . . . Parts Attached 44 | 5 15 17 7 Power 9 | 1 1 5 2 Engine 5 | 1 1 3 . Core 4 | . . 2 2 Reactor . | . . . . Propulsion 11 | 2 3 4 2 Treads . | . . . . Leg 11 | 2 3 4 2 Wheel . | . . . . Hover . | . . . . Flight . | . . . . Utility 8 | . 5 2 1 Device 3 | . 2 . 1 Storage 3 | . 3 . . Processor 1 | . . 1 . Hackware . | . . . . Protection 1 | . . 1 . Artifact . | . . . . Weapon 16 | 2 6 6 2 Energy Gun 4 | 1 3 . . Energy Cannon 3 | . . 3 . Ballistic Gun 5 | 1 2 1 1 Ballistic Cannon . | . . . . Launcher 4 | . 1 2 1 Special Weapon . | . . . . Impact Weapon . | . . . . Slashing Weapon . | . . . . Piercing Weapon . | . . . . Special Melee Weapon . | . . . . Unidentified Prototypes . | . . . . Parts Lost 16 | . 3 4 9 Power 5 | . . 3 2 Propulsion 3 | . 1 . 2 Utility 2 | . . . 2 Weapon 6 | . 2 1 3 Highest Loss Streak 9 | . 2 2 9 To Critical Strikes . | . . . . Average Slot Usage (%) 91 | . 90 94 59 Engine 12 | . 14 12 . Core 3 | . . 6 11 Leg 23 | . 27 21 11 Device 3 | . 6 . 1 Storage 12 | . 14 11 11 Processor 5 | . . 10 11 Protection 5 | . . 10 7 Energy Gun 5 | . 12 . . Energy Cannon 4 | . . 9 . Ballistic Gun 11 | . 12 11 4 Naked Turns . | . . . . Heaviest Build 42 | 7 32 42 41 Greatest Support 34 | 20 20 34 34 Greatest Overweight (x) 11 | . 1 11 7 Average Overweight (x) . | . . . 2 Largest Inventory Capacity 15 | 5 15 15 15 Average Capacity 11 | 5 8 15 15 Most Carried 13 | 4 9 13 13 Average Carried 7 | 2 5 10 9 Final Capacity 15 | 5 15 15 15 Final Carried 13 | 4 8 13 6 Class Distribution -------------------- 100% | Mutant Dominant Class ---------------- Mutant | -10/Materials Mutant | -9/Materials Mutant | -9/Mines Resources | -11 -10 -9 -9 ----------- Run | Yrd Mat Mat Min Matter Collected 957 | 262 299 396 . Remotely . | . . . . Salvage Created 884 | 33 352 463 36 Parts 61 | 2 22 37 . Haulers Intercepted 1 | . . 1 . Recyclers Shooed 1 | . . 1 . Parts Field Recycled . | . . . . Retrieved Matter . | . . . . Parts Self-Destructed . | . . . . Prevented . | . . . . Kills | -11 -10 -9 -9 ------- Run | Yrd Mat Mat Min Combat Hostiles Destroyed 26 | 1 9 12 4 Guns 10 | 1 6 2 1 Cannons 4 | . . 4 . AOE 12 | . 3 6 3 Classes Destroyed 8 | 1 2 4 1 Builder 1 | . . 1 . Hauler 1 | . . 1 . Recycler 2 | . 1 1 . Watcher 1 | . . 1 . Swarmer 10 | . 3 7 . Grunt 9 | 1 6 2 . Sentry 3 | . . 3 . Assembled 4 | . . . 4 Best Kill Streak 9 | 1 3 9 3 Combat Bots Only 7 | 1 3 7 3 Max Kills in Single Turn 4 | 1 1 4 3 Gunslinging . | . . . . Exploded 3 | . 1 3 3 Melee . | . . . . Uniques/NPCs Destroyed . | . . . . Combat | -11 -10 -9 -9 -------- Run | Yrd Mat Mat Min Hostile Shots Fired 236 | 6 55 113 62 Missed 76 | 2 19 36 19 Damage Taken 2486 | 44 661 917 864 Core 592 | . 192 166 234 Absorbed by Shields . | . . . . Redirected to Shielding 51 | . . 34 17 Regen/Repaired (Parts) 61 | . 61 . . Core Remaining (%) 61 | 100 23 . . Volleys Fired 83 | 4 37 33 9 Largest 2 | 2 2 2 1 Hottest 91 | 70 85 91 30 Shots Fired 139 | 8 67 55 9 Gun 103 | 8 64 23 8 Cannon 30 | . . 30 . Launcher 6 | . 3 2 1 Special . | . . . . Kinetic 68 | 4 33 23 8 Thermal 58 | 4 24 30 . Explosive 6 | . 3 2 1 Electromagnetic 7 | . 7 . . Robot Hit Streak 5 | 2 4 5 1 Robot Miss Streak 3 | 3 3 1 2 Penetration Max . | . . . . Secondary Targets . | . . . . Shots Hit Robots 78 | 3 36 35 4 Core Hits 47 | 2 18 18 9 Critical Kills . | . . . . Critical Parts Destroyed . | . . . . Critical Strikes . | . . . . Melee Attacks . | . . . . Impact . | . . . . Slashing . | . . . . Piercing . | . . . . Sneak Attacks . | . . . . Combat Hostiles . | . . . . Follow-up Attacks . | . . . . Damage Inflicted 2112 | 37 725 1095 255 Guns 790 | 37 461 246 46 Cannons 414 | . . 414 . Explosions 874 | . 264 402 208 Melee . | . . . . Ramming 34 | . . 33 1 Kinetic 572 | 25 255 246 46 Thermal 607 | 12 181 414 . Explosive 874 | . 264 402 208 Electromagnetic 25 | . 25 . . Impact . | . . . . Slashing . | . . . . Piercing . | . . . . Highest Corruption 5 | . . . 5 Average Corruption 5 | . . . 5 Corruption Purged . | . . . . Corruption Blocked . | . . . . Overload Shots . | . . . . Overflow Damage 102 | . 89 13 . Projectiles 1 | . . 1 . Explosions 101 | . 89 12 . Melee . | . . . . Knockbacks . | . . . . Impact . | . . . . Kinetic . | . . . . Secondary . | . . . . Self-Inflicted Damage 218 | . 179 . 39 Shots 5 | . 4 . 1 Rammed . | . . . . Targets Rammed 3 | . . 2 1 Kicked 3 | . . 2 1 Crushed . | . . . . Highest Temperature 392 | 42 186 392 24 Average Temperature 112 | 20 62 164 12 Received Heat Transfer 619 | 24 162 333 100 Effects 4 | . . 4 . Shutdowns 3 | . . 3 . Damage (minor) 1 | . . 1 . Siege Activations . | . . . . Robots Corrupted . | . . . . Combat Hostiles . | . . . . Parts Fried . | . . . . Impact Corruptions . | . . . . Robots Melted . | . . . . Combat Hostiles . | . . . . Parts Melted . | . . . . Heat Transferred 1258 | 37 481 740 . Parts Sabotaged . | . . . . Parts Stolen . | . . . . Parts Stripped . | . . . . Power Chain Reactions . | . . . . Alert | -11 -10 -9 -9 ------- Run | Yrd Mat Mat Min Peak Influence 411 | 20 271 411 136 Initial 136 | . 13 78 136 Average 167 | 2 149 209 95 Maximum Alert Level 2 | . 1 2 . Low Security (%) 56 | 100 74 30 100 Level 1 43 | . 25 67 . Level 2 . | . . 1 . Level 3 . | . . . . Level 4 . | . . . . Level 5 . | . . . . High Security . | . . . . Max Security . | . . . . Squads Dispatched 3 | . 1 2 . Investigation 2 | . 1 1 . Extermination . | . . . . Reinforcement 1 | . . 1 . Assault . | . . . . Garrison . | . . . . Intercept . | . . . . Searches Triggered . | . . . . Construction Impeded . | . . . . Haulers Reinforced . | . . . . Active Scanning Responses . | . . . . Cargo Convoy Interrupts . | . . . . Stealth | -11 -10 -9 -9 --------- Run | Yrd Mat Mat Min Distress Signals 3 | . . 3 . Communications Jammed . | . . . . Distress Signals . | . . . . Times Spotted 70 | 1 15 27 27 Peak Tracking Total 23 | 1 3 6 23 Tactical Retreats 9 | . 4 2 3 Traps | -11 -10 -9 -9 ------- Run | Yrd Mat Mat Min Traps Triggered 1 | . 1 . . Indirectly . | . . . . Trap Hack Attempts . | . . . . Triggered . | . . . . Disarmed . | . . . . Reprogrammed . | . . . . Reused . | . . . . Traps Extracted . | . . . . Installed . | . . . . Triggered . | . . . . Machines | -11 -10 -9 -9 ---------- Run | Yrd Mat Mat Min Machines Disabled 4 | . 4 . . Max in Single Turn 2 | . 2 . . Machines Repaired . | . . . . Machines Dismantled . | . . . . Machines Sabotaged . | . . . . Overloaded Fab Kills . | . . . . Hacking | -11 -10 -9 -9 --------- Run | Yrd Mat Mat Min Machines Accessed 4 | . 1 3 . Terminals 3 | . . 3 . Fabricators . | . . . . Repair Stations 1 | . 1 . . Recycling Units . | . . . . Scanalyzers . | . . . . Garrison Access . | . . . . Total Hacks 12 | . 3 9 . Successful 8 | . 2 6 . Failed 4 | . 1 3 . Catastrophic 1 | . . 1 . Database Lockouts . | . . . . Manual . | . . . . Terminals 9 | . . 9 . Fabricators . | . . . . Repair Stations 3 | . 3 . . Recycling Units . | . . . . Scanalyzers . | . . . . Garrison Access . | . . . . Terminal Hacks 6 | . . 6 . Record 2 | . . 2 . Prototype ID Bank 1 | . . 1 . Alert Level 1 | . . 1 . Locate Traps 1 | . . 1 . Recall Investigation 1 | . . 1 . Fabricator Hacks . | . . . . Repair Station Hacks 2 | . 2 . . Scan Component 1 | . 1 . . Repair 1 | . 1 . . Recycling Unit Hacks . | . . . . Scanalyzer . | . . . . Garrison Access Hacks . | . . . . Unauthorized Hacks . | . . . . Terminals . | . . . . Fabricators . | . . . . Repair Stations . | . . . . Recycling Units . | . . . . Scanalyzers . | . . . . Garrison Access . | . . . . Data Cores Recovered . | . . . . Used . | . . . . Hacking Detections 4 | . 1 3 . Full Trace Events 3 | . 1 2 . Feedback Events . | . . . . Feedback Blocked . | . . . . Robot Schematics Acquired . | . . . . Robots Built . | . . . . Authchips . | . . . . Time . | . . . . Total Robot Build Rating . | . . . . Part Schematics Acquired . | . . . . Parts Built . | . . . . Authchips . | . . . . Time . | . . . . Total Part Build Rating . | . . . . Parts Repaired 1 | . 1 . . Time 13 | . 13 . . Parts Recycled . | . . . . Recycled Matter . | . . . . Retrieved Matter . | . . . . Retrieved Components . | . . . . Parts Scanalyzed . | . . . . Part Schematics Acquired . | . . . . Parts Damaged . | . . . . Bothacking | -11 -10 -9 -9 ------------ Run | Yrd Mat Mat Min Used RIF Installer . | . . . . Robots Hacked . | . . . . Non-combat . | . . . . Combat . | . . . . Robot Hacks Applied . | . . . . Relay Couplers Released . | . . . . Fabnet Peak Effective % . | . . . . Robots Rewired . | . . . . Allies Hacked . | . . . . Hacks Repelled . | . . . . Allies | -11 -10 -9 -9 -------- Run | Yrd Mat Mat Min Total Allies . | . . . . Largest Group . | . . . . Highest-Rated Group . | . . . . Highest-Rated Ally . | . . . . Total Orders . | . . . . Ally Attacks . | . . . . Total Damage . | . . . . Kills . | . . . . Allies Corrupted . | . . . . Allies Melted . | . . . . Intel | -11 -10 -9 -9 ------- Run | Yrd Mat Mat Min Robot Analysis Total . | . . . . Derelict Logs Recovered . | . . . . Drone Launches . | . . . . Drone Recoveries . | . . . . Exploration | -11 -10 -9 -9 ------------- Run | Yrd Mat Mat Min Turns Passed 1594 | 93 665 765 71 Spaces Moved 793 | 65 369 340 19 Core 20 | 14 . 1 5 Treads . | . . . . Legs 773 | 51 369 339 14 Wheels . | . . . . Hover . | . . . . Flight . | . . . . Fastest Speed 50 | 50 120 130 130 Average Speed 154 | 104 136 181 216 Slowest Speed 600 | 120 190 600 400 Overloaded Moves . | . . . . Propulsion Burnouts . | . . . . Robots Hopped . | . . . . Cave-ins Triggered . | . . . . Exploration Rate (%) 26 | 8 48 43 8 Regions Visited 3 Branch Regions 1 Pre-discovered Areas . | . . . . Known Exits Taken . | . . . . Unknown Exits Taken 3 | 1 1 1 . Scrap Searched . | . . . . Spaces Dug . | . . . . Terrain Destroyed 57 | . 36 13 8 Melee . | . . . . Projectile . | . . . . AOE 57 | . 36 13 8 Terrain Rammed . | . . . . Walls Destroyed . | . . . . Machines Disabled . | . . . . Actions | -11 -10 -9 -9 --------- Run | Yrd Mat Mat Min Total 1020 | 82 468 431 39 Wait 34 | . 16 15 3 Move 790 | 64 368 339 19 Hop . | . . . . Pick Up 44 | 9 18 17 . Fast Attach 3 | . 3 . . Attach 28 | 5 8 8 7 Detach 3 | . 3 . . Swap 13 | . 4 9 . Drop 19 | . 11 8 . Fire 83 | 4 37 33 9 Melee . | . . . . Ram . | . . . . Kick 3 | . . 2 1 Crush . | . . . . Escape Stasis . | . . . . Rewire . | . . . . Trap . | . . . . Miscellaneous . | . . . . Route ------- -11/Scrapyard -10/Materials -9/Materials -9/Mines (discovered 1 exit: [*Mat]) History --------- Turn | Location | Event 2 | -11/Scrapyard | Met Revision 17 67 | -11/Scrapyard | Discovered new exit (range 8) 94 | -11/Scrapyard | Entered Materials 302 | -10/Materials | Build established: Mutant 536 | -10/Materials | Repaired Aluminum Leg 542 | -10/Materials | Discovered new exit (range 10) 679 | -10/Materials | Core integrity fell below 50% 759 | -10/Materials | Entered another Materials area 759 | -9/Materials | Evolved 2 slots: Power x1, Utility x1 1170 | -9/Materials | Destroyed 7 combat bots 1478 | -9/Materials | Discovered new exit (range 9) 1524 | -9/Materials | Entered Mines 1525 | -9/Mines | Assembled infested the area 1551 | -9/Mines | Core integrity fell below 50% 1569 | -9/Mines | Discovered new exit (range 8) 1579 | -9/Mines | Core integrity fell below 20% 1595 | -9/Mines | Destroyed by D-53 Grenadier with Mini Grenade Launcher Last Messages --------------- as-39579 destroyed. as-39257 destroyed. as-94797 destroyed. Grenade Launcher destroyed. Titanium Leg destroyed. as-69306 destroyed. as-06160 destroyed. Nuclear Core destroyed. Titanium Leg destroyed. as-68310 destroyed. Nuclear Core destroyed. Assault Rifle destroyed. as-06223 destroyed. EXIT=FOUND as-64235 destroyed. as-23844 destroyed. Core Shielding destroyed. The unstable cave ceiling collapses. ECM Suite destroyed. [Achievement: First Step to Greatness] Map ----- +----------------------------------------------------+ | | | | | | | | | | | | | ?????????????????????????????????????? | | ?????????????????????????????????????? | | ?????????????????????????????????????? | | ?????????????????????????????????????? | | ?????????????????????????????????????? | | ??????????#####??????????????????????? | | ?# ?????## [##?????? ##????????????? | | ??# ## =% ##### ##???????????? | | ???# %% #???????????? | | ????# #???????????? | | ?????# # [ #### #????????????? | | ???????????# % #????????????????????? | | ???????????# #????????????????????? | | ???????????#%% #????????????????????? | | ???????????##d ?????????????????????? | | ??????????## % ##????????????????????? | | ??????????# #% ####??????????????????? | | ??????????# #??????????????????? | | ???????###### # #??????????????????? | | ???????# a@###????????????????????? | | ???????# a #??????????????????????? | | ???????# a #??????????????????????? | | ???????# #??????????????????????? | | ???????# < #??????????????????????? | | ???????# #??????????????????????? | | ???????# #??????????????????????? | | ???????#### ###??????????????????????? | | ??????????# #????????????????????????? | | ??????????# #????????????????????????? | | ??????????# ????????????????????????? | | ??????????###????????????????????????? | | ?????????????????????????????????????? | | ?????????????????????????????????????? | | ?????????????????????????????????????? | | ?????????????????????????????????????? | | ?????????????????????????????????????? | | ?????????????????????????????????????? | | ?????????????????????????????????????? | | ?????????????????????????????????????? | | ?????????????????????????????????????? | | ?????????????????????????????????????? | | ?????????????????????????????????????? | | ?????????????????????????????????????? | | ?????????????????????????????????????? | +----------------------------------------------------+ Best States ------------- Heat Dissipation 28 Energy Generation 23 Energy Capacity 430 Matter Stores 424 Matter Capacity 500 Sight Range 20 Robot Scan Range 14 Terrain Scan Density 10 ECM Strength 1 Core Shielding 20 Evasion (%) 55 Item Schematics ----------------- None Robot Schematics ------------------ None Fabricated ------------ Nothing Alien Tech Used ----------------- None Achievements -------------- First Step to Greatness Hunted Let's See Who's Tougher Loot Pinata One Hack Too Far Part-time Mechanic Uninvited Guest Challenges ------------ None Game ------ Seed MetafieldShieldTerminator Manual? 0 Play Time 00:58:16 Cumulative 0.9 hours Start 2024.03.31 @ 12:20:21 End 2024.03.31 @ 13:26:58 Sessions 1 Manual Loads 0 Difficulty Rogue Special Mode None Game No. 1 Rogue 1 Adventurer 0 Explorer 0 Win Type - Total 0 Types 0/0/0/0/0/0/0/0/0 Lore% 0 Gallery% 2 Achievement% 2 Wizard Run 0 Options --------- Layout 1 ASCII 0 Keyboard 0 Movement Numpad Keybinds 0 Fullscreen 1 Font 32/SmallcapsGlow Map View 77x35 Zoom Use 11% Tactical HUD 0 Map Filters NONE Filters NONE Steam 1 RUN: a671a760-c85a-4530-aff4-50bef0c718fc